bitfinex/quotes_ETHUSD_20220117
["timestamp","ask_amount","ask_price","bid_price","bid_amount"]
[1642381526684,1.50611881,3329.9,3329.8,0.0096632]
[1642381526985,2.51181881,3329.9,3329.5,0.01136847]
[1642381528560,3.4311514,3329.9,3329.5,0.01136847]
[1642381528949,2.44291552,3329.8,3329.5,0.01136847]
[1642381529148,2.44291552,3329.8,3329.3,0.01250532]
[1642381530150,0.91933259,3329.7,3329.3,0.01250532]
[1642381530351,2.50315629,3329.6,3329.3,0.01250532]
[1642381530950,0.91933259,3329.7,3329.3,0.01250532]
[1642381531352,0.91933259,3329.5,3329.3,0.01250532]
[1642381531552,2.59142335,3329.4,3329.3,0.01250532]
[1642381536732,1.11487697,3329.4,3329.3,0.01250532]
[1642381538532,1.11487697,3329.4,3329.3,1.5014785]
[1642381540180,1.11487697,3329.4,3329.3,1.8014785]
[1642381541584,1.11487697,3329.4,3329.3,1.5014785]
[1642381542886,1.11487697,3329.4,3329.3,0.01250532]
[1642381544434,1.33187977,3329.5,3329.3,0.01250532]
[1642381544834,1.40244623,3329.4,3329.3,0.01250532]
[1642381548782,1.40244623,3329.4,3329.3,1.51391467]
[1642381548981,1.40244623,3329.4,3329.3,1.52390204]
[1642381549582,1.40244623,3329.4,3329.3,0.02249269]
[1642381552444,1.40244623,3329.4,3329.3,1.54447034]
[1642381553244,2.65184989,3329.4,3329.3,1.54447034]
[1642381554345,2.65184989,3329.4,3329.3,0.02249269]
[1642381555390,5.86350354,3329.4,3329.3,0.02249269]
[1642381555785,6.86350354,3329.4,3329.3,0.02249269]
[1642381555984,16.96350354,3329.4,3329.3,0.02249269]
[1642381556186,7.16350354,3329.4,3329.3,9.269e-05]
[1642381556584,8.16402588,3329.4,3329.3,9.269e-05]
[1642381557084,14.16402588,3329.4,3329.3,9.269e-05]
[1642381557284,14.16402588,3329.4,3328.6,0.120162]
[1642381557484,0.75112,3329.2,3328.6,0.120162]
[1642381557686,3.45177652,3329.1,3328.7,0.00341054]
[1642381557988,3.75177652,3329.1,3328.7,0.00341054]
[1642381558541,1.0,3329.0,3328.7,0.00341054]
[1642381558733,10.53035049,3328.8,3328.7,1.54437051]
[1642381559132,11.53035049,3328.8,3328.7,1.54437051]
[1642381560135,11.53035049,3328.8,3328.7,0.00341054]
[1642381560337,12.53087283,3328.8,3328.7,0.00341054]
[1642381561139,0.75117,3328.6,3327.7,3.7954]
[1642381561334,2.65424398,3328.5,3327.7,3.7954]
[1642381561534,2.65424398,3328.5,3327.8,0.00511581]
[1642381562783,1.00052234,3328.4,3327.8,0.00511581]
[1642381562983,2.37603552,3328.3,3327.8,0.00511581]
[1642381563385,1.24065035,3327.9,3327.8,0.00511581]
[1642381563589,1.24065035,3327.9,3327.5,0.00682108]
[1642381563785,1.4981837,3327.6,3327.5,0.00682108]
[1642381563984,1.00052234,3328.4,3327.4,0.0073895]
[1642381564386,1.1981,3328.9,3327.4,0.0073895]
[1642381564585,1.1981,3328.9,3327.4,1.2287895]
[1642381564786,1.34171318,3328.2,3327.4,1.2287895]
[1642381564992,1.34171318,3328.2,3327.5,0.00682108]
[1642381565387,1.31373389,3328.1,3327.5,0.00682108]
[1642381567239,1.34934115,3327.7,3327.5,0.00682108]
[1642381567435,1.48031785,3327.6,3327.5,0.00682108]
[1642381567838,1.48031785,3327.6,3327.4,0.0073895]
[1642381568538,1.48031785,3327.6,3327.2,0.00852635]
[1642381569038,1.48031785,3327.6,3327.5,0.00945062]
[1642381569436,1.48031785,3327.6,3327.5,0.0162717]
[1642381570385,4.48031785,3327.6,3327.5,0.0162717]
[1642381570783,1.46329452,3327.0,3326.9,4.18753112]
[1642381571086,1.46329452,3327.0,3326.9,6.48741054]
[1642381571287,3.0,3327.6,3326.9,6.48741054]
[1642381571682,3.0,3327.6,3327.0,0.00284212]
[1642381572283,3.0,3327.6,3327.0,1.05398212]
[1642381572484,3.0,3327.6,3327.0,1.00398212]
[1642381572683,3.0,3327.6,3327.1,0.43627369]
[1642381573086,3.0,3327.6,3327.2,0.00170527]
[1642381573283,3.0,3327.6,3327.3,0.434]
[1642381573540,3.0,3327.6,3327.4,1.16199651]
[1642381573732,3.0,3327.6,3327.5,11.20098]
[1642381574129,3.0,3327.6,3327.5,11.50098]
[1642381577134,3.0,3327.6,3327.5,12.93498]
[1642381577380,15.003,3329.5,3328.0,0.75083]
[1642381577583,15.003,3329.5,3328.1,0.434]
[1642381577780,0.01023162,3329.3,3328.2,1.1951]
[1642381577980,0.01023162,3329.3,3328.3,0.434]
[1642381578180,1.2116453,3329.2,3328.3,0.434]
[1642381578481,0.00909478,3329.1,3328.3,0.434]
[1642381578886,0.00852635,3329.0,3328.3,0.46443967]
[1642381579181,1.29721018,3328.5,3328.3,0.76443967]
[1642381579684,0.00511581,3328.4,3328.3,0.76443967]
[1642381580280,0.00511581,3328.4,3328.3,1.06443967]
[1642381580485,15.003,3329.5,3328.4,14.95]
[1642381580486,3.0,3328.5,3328.4,14.95]
[1642381580682,1.711,3328.5,3328.4,16.2896]
[1642381580883,0.00568424,3329.4,3328.5,13.7]
[1642381581145,0.00568424,3329.4,3328.8,0.75063]
[1642381581349,15.003,3329.5,3328.9,1.8852681]
[1642381581350,1.40312341,3329.0,3328.9,1.8852681]
[1642381581549,1.40312341,3329.0,3328.9,2.1852681]
[1642381581745,1.40653395,3329.0,3328.9,8.7352681]
[1642381581946,1.40653395,3329.0,3328.9,0.734]
[1642381582346,1.40653395,3329.0,3328.9,0.434]
[1642381582545,1.40653395,3329.0,3328.9,0.734]
[1642381582947,2.88239263,3329.0,3328.9,0.734]
[1642381583947,2.88239263,3329.0,3328.9,0.76423363]
[1642381584883,2.88239263,3329.0,3328.9,0.46423363]
[1642381586084,2.88239263,3329.0,3328.9,0.76423363]
[1642381586287,2.88239263,3329.0,3328.9,0.33023363]
[1642381586688,2.88239263,3329.0,3328.9,0.03023363]
[1642381587088,5.3578007,3329.0,3328.9,0.03023363]
[1642381587290,3.89819263,3329.0,3328.9,0.03023363]
[1642381587492,6.35102264,3329.0,3328.9,0.03023363]
[1642381587688,14.70102264,3329.0,3328.9,0.03023363]
[1642381587992,12.24819263,3329.0,3328.9,0.03023363]
[1642381589033,12.24819263,3329.0,3328.0,1.24843363]
[1642381589238,2.6115585,3328.9,3328.0,1.24843363]
[1642381589435,2.61440062,3328.9,3328.1,0.00170527]
[1642381589634,0.0022737,3328.8,3328.1,0.00170527]
[1642381590036,1.49099699,3328.4,3328.1,0.30170527]
[1642381590237,1.31366861,3328.3,3328.1,0.00170527]
[1642381590435,1.31366861,3328.3,3328.2,0.00113684]
[1642381590636,1.31366861,3328.3,3328.1,0.00170527]
[1642381593984,1.31366861,3328.3,3328.2,0.03047402]
[1642381594388,1.31366861,3328.3,3328.2,0.03161086]
[1642381596043,1.31366861,3328.3,3328.2,1.6218557]
[1642381596434,1.31366861,3328.3,3328.2,1.9218557]
[1642381598438,1.31366861,3328.3,3328.2,1.6218557]
[1642381598439,3.70971145,3328.3,3328.2,1.6218557]
[1642381598637,6.21366861,3328.3,3328.2,1.6218557]
[1642381599643,1.31366861,3328.3,3328.2,1.6218557]
[1642381601091,4.31366861,3328.3,3328.2,1.6218557]
[1642381603736,5.36851661,3328.3,3328.2,1.6218557]
[1642381605841,4.31366861,3328.3,3328.2,1.6218557]
[1642381606641,4.31366861,3328.3,3328.2,1.9218557]
[1642381608086,4.31366861,3328.3,3328.2,1.6218557]
[1642381608487,4.31366861,3328.3,3328.2,1.9218557]
[1642381610091,4.31366861,3328.3,3328.2,1.6218557]
[1642381612034,5.24936861,3328.3,3328.2,1.6218557]
[1642381616084,6.24004701,3328.3,3328.2,1.6218557]
[1642381624387,6.24004701,3328.3,3328.2,1.62071886]
[1642381624588,5.24936861,3328.3,3328.2,1.62071886]
[1642381625488,6.18048982,3328.3,3328.2,1.62071886]
[1642381632089,5.24936861,3328.3,3328.2,1.62071886]
[1642381634338,6.18349765,3328.3,3328.2,1.62071886]
[1642381634935,6.18349765,3328.3,3328.2,1.92071886]
[1642381635335,6.18349765,3328.3,3328.2,1.62071886]
[1642381635734,6.18349765,3328.3,3328.2,3.91557351]
[1642381635940,6.18349765,3328.3,3328.2,1.92071886]
[1642381636139,5.24779765,3328.3,3328.2,10.67232294]
[1642381636534,5.24779765,3328.3,3328.2,4.59989647]
[1642381636735,5.24779765,3328.3,3328.2,2.35471886]
[1642381636736,4.31366861,3328.3,3328.2,2.35471886]
[1642381637489,4.31366861,3328.3,3328.2,2.05471886]
[1642381637891,5.25255027,3328.3,3328.2,2.35471886]
[1642381638890,4.31366861,3328.3,3328.2,2.35471886]
[1642381639089,4.31366861,3328.3,3328.2,10.04151908]
[1642381639090,3.0,3328.3,3328.2,10.04151908]
[1642381639290,3.0,3328.3,3328.2,10.34151908]
[1642381639792,3.0,3328.3,3328.2,10.3969077]
[1642381639996,3.0,3328.3,3328.2,8.05471886]
[1642381640196,3.0,3328.3,3328.2,2.65471886]
[1642381641854,3.0,3328.3,3328.2,2.35471886]
[1642381643057,3.0,3328.3,3328.2,2.65471886]
[1642381643257,3.93583897,3328.3,3328.2,2.65471886]
[1642381644057,3.0,3328.3,3328.2,2.65471886]
[1642381645392,3.0,3328.3,3328.2,4.8876194]
[1642381645593,3.0,3328.3,3328.2,4.88804691]
[1642381645793,3.0,3328.3,3328.2,2.65471886]
[1642381645992,3.0,3328.3,3328.2,4.88342091]
[1642381646206,3.0,3328.3,3328.2,4.90569144]
[1642381646596,1.50370532,3329.3,3328.2,4.90569144]
[1642381646597,1.50370532,3329.3,3328.3,14.95]
[1642381646799,1.7194245,3329.4,3328.4,3.65122028]
[1642381646800,3.22312982,3329.4,3328.4,3.65122028]
[1642381646999,0.00341054,3329.0,3328.4,5.25122028]
[1642381647400,1.46420775,3328.8,3328.4,5.25122028]
[1642381647798,0.00170527,3328.7,3328.6,12.27467245]
[1642381648001,0.00170527,3328.7,3328.6,13.30867245]
[1642381648200,0.00170527,3328.7,3328.6,14.30867245]
[1642381648850,0.00170527,3328.7,3328.6,14.33900909]
[1642381649245,0.00170527,3328.7,3328.6,15.92925393]
[1642381653895,0.00170527,3328.7,3328.6,19.92925393]
[1642381654294,0.00170527,3328.7,3328.6,15.92925393]
[1642381655096,0.00170527,3328.7,3328.6,18.09307246]
[1642381656141,0.00170527,3328.7,3328.6,15.92925393]
[1642381656343,15.003,3329.5,3328.9,0.75063]
[1642381656543,15.003,3329.5,3329.1,1.52337355]
[1642381656745,1.40232154,3329.3,3329.2,0.434]
[1642381657142,1.40573208,3329.3,3329.2,0.434]
[1642381658142,1.40573208,3329.3,3329.1,0.3]
[1642381658342,1.14780149,3329.0,3328.7,0.434]
[1642381658542,1.14780149,3329.0,3328.7,0.734]
[1642381658843,0.00113685,3328.9,3328.7,0.734]
[1642381659789,0.00113685,3328.9,3328.8,1.58549245]
[1642381660889,3.80113685,3328.9,3328.8,1.58549245]
[1642381662190,0.00113685,3328.9,3328.8,1.58549245]
[1642381662390,1.13899724,3328.8,3328.5,1.58549245]
[1642381663557,2.38640603,3328.7,3328.5,1.58549245]
[1642381663744,1.13899724,3328.8,3328.5,1.58549245]
[1642381664048,1.13899724,3328.8,3328.7,0.0303023]
[1642381664346,3.62857882,3328.8,3328.7,0.0303023]
[1642381664845,5.08899724,3328.8,3328.7,0.0303023]
[1642381665445,5.57301246,3328.8,3328.7,0.0303023]
[1642381667694,1.62301246,3328.8,3328.7,0.0216723]
[1642381668900,1.62301246,3328.8,3327.8,7.8501]
[1642381669200,1.46220419,3328.4,3327.9,0.00454738]
[1642381669804,0.48401522,3328.8,3327.9,1.61585873]
[1642381670001,0.48401522,3328.7,3327.9,1.61585873]
[1642381670202,0.48401522,3328.7,3328.0,0.00397896]
[1642381670401,1.43424342,3328.6,3328.0,0.00397896]
[1642381670608,0.48401522,3328.7,3328.0,2.04929031]
[1642381670804,0.48401522,3328.7,3328.0,2.34929031]
[1642381671051,0.48401522,3328.7,3328.2,1.96170663]
[1642381671345,0.48401522,3328.7,3328.3,0.00227369]
[1642381671940,1.4500734,3328.9,3328.3,0.00227369]
[1642381671941,1.47214348,3328.8,3328.3,0.00227369]
[1642381672538,1.47214348,3328.8,3328.2,1.88129032]
[1642381672739,0.00227369,3328.7,3328.3,1.61131135]
[1642381673139,0.00170527,3328.6,3328.3,1.61131135]
[1642381673539,0.00113685,3328.5,3328.3,1.61131135]
[1642381673939,0.00227369,3328.7,3328.3,1.61131135]
[1642381674340,0.00170527,3328.6,3328.3,1.61131135]
[1642381674640,0.00113685,3328.5,3328.3,1.61131135]
[1642381674925,0.00113685,3328.5,3328.3,1.91131135]
[1642381675095,0.00227369,3328.7,3328.3,1.61131135]
[1642381675498,0.00170527,3328.6,3328.3,1.61131135]
[1642381675697,0.00170527,3328.6,3328.4,1.61131135]
[1642381675896,0.00113685,3328.5,3328.4,1.91131135]
[1642381676300,0.00227369,3328.5,3328.4,1.91131135]
[1642381677798,0.00227369,3328.5,3328.4,1.61131135]
[1642381677999,0.00227369,3328.5,3328.4,1.91131135]
[1642381680244,0.00227369,3328.5,3328.4,1.61131135]
[1642381680446,0.00227369,3328.5,3328.4,1.91131135]
[1642381681246,0.00227369,3328.5,3327.9,1.61131135]
[1642381681447,1.22191372,3328.3,3327.9,1.91131135]
[1642381681647,1.22191372,3328.3,3328.0,0.00170527]
[1642381682048,1.48568843,3328.2,3328.0,0.00170527]
[1642381682498,1.48568843,3328.2,3328.0,1.61301662]
[1642381682899,2.38818843,3328.2,3328.1,0.00113685]
[1642381684200,3.19630087,3328.2,3328.1,0.00113685]
[1642381686144,5.60272434,3328.2,3328.1,0.00113685]
[1642381686344,3.19630087,3328.2,3328.1,0.00113685]
[1642381687045,1.53231328,3327.7,3327.5,0.00454739]
[1642381687244,1.23489129,3327.6,3327.5,0.00454739]
[1642381688446,1.23489129,3327.6,3327.5,1.61585874]
[1642381693096,4.03489129,3327.6,3327.5,1.61585874]
[1642381694550,4.03489129,3327.6,3327.5,8.71585874]
[1642381695448,4.03489129,3327.6,3327.5,9.14985874]
[1642381699794,4.03489129,3327.6,3327.5,2.04985874]
[1642381707402,9.28489129,3327.6,3327.5,1.61585874]
[1642381708398,4.03489129,3327.6,3327.5,1.61585874]
[1642381709550,4.77735159,3327.6,3327.5,0.00454739]
[1642381709951,4.77735159,3327.6,3326.8,0.00852635]
[1642381710352,3.5424603,3327.6,3326.8,0.00852635]
[1642381711050,2.8,3327.6,3326.8,0.00852635]
[1642381711353,2.8,3327.6,3326.9,2.04531135]
[1642381711551,2.8,3327.6,3326.9,5.29814515]
[1642381711751,1.25443913,3327.5,3327.0,0.00738951]
[1642381711952,1.25443913,3327.5,3327.1,0.434]
[1642381712397,1.25443913,3327.5,3327.2,0.00625266]
[1642381712598,1.25443913,3327.5,3327.2,0.44025266]
[1642381713002,1.25443913,3327.5,3327.3,0.00568424]
[1642381713198,1.25443913,3327.5,3327.3,1.05675424]
[1642381713599,2.8,3327.6,3327.4,0.00511581]
[1642381713802,2.8,3327.6,3327.5,12.034]
[1642381714198,2.8,3327.6,3327.5,12.03854739]
[1642381714400,2.8,3327.6,3327.5,12.33854739]
[1642381714805,2.75,3327.6,3327.5,13.94985874]
[1642381716054,2.75,3327.6,3327.5,14.24985874]
[1642381716746,2.75,3327.6,3327.5,13.94985874]
[1642381717746,2.75,3327.6,3327.5,15.24985874]
[1642381717949,0.4573712,3328.7,3327.9,0.75088]
[1642381718148,1.1612,3329.1,3328.1,0.02563488]
[1642381718347,0.00170527,3328.6,3328.3,0.0213311]
[1642381718551,0.00170527,3328.6,3328.4,0.434]
[1642381718749,0.00113685,3328.5,3328.4,11.30094307]
[1642381719052,0.00113685,3328.5,3328.4,11.60094307]
[1642381720298,0.00113685,3328.5,3328.4,13.21225442]
[1642381721501,0.00113685,3328.5,3328.4,3.21225442]
[1642381722200,1.20854278,3328.8,3328.4,3.21225442]
[1642381722600,0.00113684,3328.7,3328.4,3.21225442]
[1642381722800,2.8,3328.5,3328.4,3.51225442]
[1642381723000,2.8,3328.5,3328.4,4.26270822]
[1642381723201,2.8,3328.5,3328.4,14.80139687]
[1642381723854,0.00113684,3328.7,3328.5,14.9]
[1642381724150,0.00113684,3328.7,3328.4,2.65139687]
[1642381724151,0.00113684,3328.7,3328.6,17.26066882]
[1642381724453,1.50370532,3329.7,3328.7,12.25]
[1642381724650,1.50370532,3330.0,3329.0,0.75058]
[1642381724850,0.00341054,3329.3,3329.1,0.434]
[1642381725052,0.00341054,3329.3,3329.1,0.734]
[1642381725249,0.00284212,3329.2,3329.1,0.734]
[1642381725849,1.37088071,3329.2,3329.1,0.734]
[1642381726249,1.37088071,3329.2,3329.1,5.034]
[1642381726650,1.37088071,3329.2,3329.1,0.734]
[1642381727499,1.37088071,3329.2,3329.1,1.07668284]
[1642381732049,1.37088071,3329.2,3329.1,0.77668284]
[1642381733051,1.37088071,3329.2,3329.1,1.07668284]
[1642381733649,1.37088071,3329.2,3329.1,3.87668284]
[1642381734052,0.00284212,3329.2,3329.1,3.87668284]
[1642381735101,0.00284212,3329.2,3329.1,9.87668284]
[1642381735301,0.00284212,3329.2,3329.1,10.58598284]
[1642381736304,0.00284212,3329.2,3329.1,9.87668284]
[1642381736905,1.22304513,3329.7,3329.3,0.34268284]
[1642381737104,1.22304513,3329.7,3329.4,7.17719284]
[1642381738109,1.22304513,3329.7,3329.4,8.53821235]
[1642381739150,1.22304513,3329.7,3329.4,5.11395402]
[1642381741153,1.38183274,3330.3,3329.4,5.11395402]
[1642381741753,1.38183274,3330.3,3329.4,4.36344402]
[1642381743006,1.38183274,3330.3,3329.4,2.43770235]
[1642381744208,1.23447916,3329.6,3329.4,1.07668284]
[1642381750999,1.23447916,3329.6,3329.4,0.77668284]
[1642381752898,1.23447916,3329.6,3329.4,1.07668284]
[1642381753950,1.1335,3330.2,3329.4,2.11148284]
[1642381754249,8.99945,3329.5,3329.4,18.11208284]
[1642381754650,7.499,3329.5,3329.4,17.81208284]
[1642381754948,7.499,3329.5,3329.4,18.11208284]
[1642381755349,7.499,3329.5,3329.4,20.28632795]
[1642381755350,1.49549,3329.5,3329.4,20.28632795]
[1642381755951,1.36639997,3330.7,3330.0,0.34268284]
[1642381756151,1.36639997,3330.7,3329.9,0.75043]
[1642381756152,1.16330604,3330.5,3330.2,0.34268284]
[1642381756353,0.00795793,3330.6,3330.2,2.03668284]
[1642381756551,0.00795793,3330.6,3330.3,0.34268284]
[1642381756754,0.45301544,3331.1,3330.3,0.34268284]
[1642381756755,0.00738951,3330.5,3330.3,0.34268284]
[1642381757153,0.00682108,3330.4,3330.3,0.34268284]
[1642381757603,0.00682108,3330.4,3330.3,1.09307284]
[1642381758010,1.53842374,3330.4,3330.3,1.09307284]
[1642381758204,1.53842374,3330.4,3330.3,0.34268284]
[1642381759205,1.53842374,3330.4,3330.3,2.49471899]
[1642381760909,0.00682108,3330.4,3330.3,2.49471899]
[1642381761746,0.00682108,3330.4,3330.3,6.69471899]
[1642381762148,0.00682108,3330.4,3330.3,2.49471899]
[1642381763150,0.00682108,3330.4,3330.3,5.29471899]
[1642381765799,0.00682108,3330.4,3330.3,5.72871899]
[1642381767802,0.00682108,3330.4,3330.3,5.29471899]
[1642381768563,0.00682108,3330.4,3330.3,3.14268284]
[1642381768756,0.30266388,3330.4,3330.3,3.14268284]
[1642381769153,0.30266388,3330.4,3330.3,3.44268284]
[1642381772156,2.78742335,3330.4,3330.3,3.14268284]
[1642381772602,15.93742335,3330.4,3330.3,3.14268284]
[1642381772802,14.93742335,3330.4,3330.3,3.14268284]
[1642381773003,15.24765711,3330.4,3330.3,3.14268284]
[1642381773203,12.76289764,3330.4,3330.3,3.14268284]
[1642381774005,13.94449916,3330.4,3330.3,3.14268284]
[1642381774905,12.76289764,3330.4,3330.3,3.14268284]
[1642381775307,0.61289764,3330.4,3330.3,3.14268284]
[1642381775505,5.86289764,3330.4,3330.3,3.14268284]
[1642381775905,0.56289764,3330.4,3330.3,3.14268284]
[1642381776554,7.16289764,3330.4,3330.3,3.14268284]
[1642381776752,6.85266388,3330.4,3330.3,3.14268284]
[1642381776953,0.25266388,3330.4,3330.3,3.14268284]
[1642381778055,0.25266388,3330.4,3330.3,4.31673289]
[1642381778861,0.25266388,3330.4,3330.3,4.61673289]
[1642381779657,1.50370532,3330.8,3330.3,4.61673289]
[1642381779905,1.3971571,3331.0,3330.3,4.61673289]
[1642381780100,0.00170527,3330.7,3330.3,4.61673289]
[1642381780501,0.00113685,3330.6,3330.3,4.61673289]
[1642381780799,0.00284212,3330.9,3330.3,4.61673289]
[1642381781199,1.3971571,3331.0,3330.3,4.61673289]
[1642381781200,0.0022737,3330.8,3330.3,4.61673289]
[1642381781600,0.00284212,3330.9,3330.3,4.61673289]
[1642381781999,0.0022737,3330.8,3330.3,4.61673289]
[1642381782399,0.00284212,3330.9,3330.3,4.61673289]
[1642381782799,1.3971571,3331.0,3330.3,4.61673289]
[1642381782800,0.0022737,3330.8,3330.3,4.61673289]
[1642381783201,0.00284212,3330.9,3330.3,4.61673289]
[1642381783405,0.00284212,3330.9,3330.3,5.61341289]
[1642381783657,0.0022737,3330.8,3330.5,0.34268284]
[1642381783957,2.72590532,3331.2,3330.6,0.34268284]
[1642381783958,0.00397897,3331.1,3330.6,0.34268284]
[1642381784350,0.00341054,3331.0,3330.6,0.34268284]
[1642381784750,0.00284212,3330.9,3330.6,0.34268284]
[1642381785149,0.0022737,3330.8,3330.6,0.34268284]
[1642381785552,0.00284212,3330.9,3330.6,0.34268284]
[1642381785951,0.0022737,3330.8,3330.6,0.34268284]
[1642381786350,0.00284212,3330.9,3330.6,0.34268284]
[1642381786751,0.0022737,3330.8,3330.6,0.34268284]
[1642381787052,0.00284212,3330.9,3330.6,0.34268284]
[1642381787600,0.0022737,3330.8,3330.6,0.34268284]
[1642381788002,0.00511581,3331.3,3330.6,0.34268284]
[1642381788401,0.00454739,3331.2,3330.6,0.34268284]
[1642381788803,0.00397897,3331.1,3330.6,0.34268284]
[1642381789008,1.19041451,3330.9,3330.6,0.34268284]
[1642381789207,0.00341054,3331.0,3330.6,0.34268284]
[1642381789404,0.0022737,3330.8,3330.6,0.34268284]
[1642381789604,0.00284212,3330.9,3330.6,0.34268284]
[1642381789806,0.00511581,3331.3,3330.6,0.34268284]
[1642381790006,0.0022737,3330.8,3330.6,0.34268284]
[1642381790206,1.24965786,3330.9,3330.6,0.34268284]
[1642381790606,0.0022737,3330.8,3330.6,0.34268284]
[1642381793854,1.15193156,3330.9,3330.6,0.34268284]
[1642381795103,1.50370532,3331.2,3330.6,0.34268284]
[1642381795507,0.00170527,3331.1,3330.6,0.34268284]
[1642381795707,0.14724639,3330.8,3330.6,0.34268284]
[1642381797111,0.00113684,3331.0,3330.6,0.34268284]
[1642381800159,1.56139159,3330.9,3330.6,0.34268284]
[1642381800357,2.51408034,3330.8,3330.6,0.34268284]
[1642381800556,1.56139159,3330.9,3330.6,0.34268284]
[1642381801157,0.14724639,3330.7,3330.6,0.34268284]
[1642381801460,3.89724639,3330.7,3330.6,0.34381969]
[1642381802156,3.75,3330.7,3330.6,0.34381969]
[1642381802412,11.46529249,3330.7,3330.6,0.34381969]
[1642381804406,12.96899781,3330.7,3330.6,0.34381969]
[1642381805206,12.21899781,3330.7,3330.6,0.34381969]
[1642381805405,12.34742485,3330.7,3330.6,0.34381969]
[1642381806458,10.84371953,3330.7,3330.6,0.34381969]
[1642381806659,13.10521749,3330.7,3330.6,0.34381969]
[1642381807664,10.71529249,3330.7,3330.6,0.34381969]
[1642381807861,5.66529249,3330.7,3330.6,0.34381969]
[1642381808062,5.66529249,3330.7,3330.6,0.16307454]
[1642381808864,7.95894257,3330.7,3330.6,0.16307454]
[1642381810812,5.66529249,3330.7,3330.6,0.16307454]
[1642381812415,8.08738027,3330.7,3330.6,0.16307454]
[1642381813658,5.79373019,3330.7,3330.6,0.16307454]
[1642381814351,3.1284377,3330.7,3330.6,0.16307454]
[1642381815254,4.52324556,3330.7,3330.6,0.16307454]
[1642381816253,3.0,3330.7,3330.6,0.16307454]
[1642381817303,5.42128416,3330.7,3330.6,0.16307454]
[1642381818508,6.93909942,3330.7,3330.6,0.16307454]
[1642381819112,10.48909942,3330.7,3330.6,0.16307454]
[1642381819509,8.97128416,3330.7,3330.6,0.16307454]
[1642381820515,12.85,3330.6,3330.1,7.498]
[1642381820725,17.62182119,3330.5,3330.1,7.498]
[1642381820912,18.67271119,3330.5,3330.2,0.00227369]
[1642381821163,32.79,3330.3,3330.1,7.498]
[1642381821366,17.70879642,3330.2,3330.1,7.498]
[1642381821563,17.70879642,3330.2,3330.1,1.49033]
[1642381821564,21.33397438,3330.2,3330.1,1.49033]
[1642381822365,24.98969372,3330.2,3330.1,1.49033]
[1642381823566,22.69604364,3330.2,3330.1,1.49033]
[1642381823765,22.69604364,3330.2,3330.1,0.53652258]
[1642381824167,22.69604364,3330.2,3330.1,3.33652258]
[1642381825105,22.69604364,3330.2,3330.1,0.53652258]
[1642381825304,24.98969372,3330.2,3330.1,0.53652258]
[1642381825507,8.68288292,3330.2,3330.1,0.53652258]
[1642381825910,6.46451576,3330.2,3330.1,0.53652258]
[1642381826108,3.65571934,3330.2,3330.1,0.53652258]
[1642381826312,1.36206926,3330.2,3330.1,0.53652258]
[1642381827107,1.36206926,3330.2,3330.1,2.01694735]
[1642381827908,1.36206926,3330.2,3330.1,0.53652258]
[1642381828110,0.18046774,3330.2,3330.1,0.53652258]
[1642381829061,6.08046774,3330.2,3330.1,0.53652258]
[1642381829262,5.9,3330.2,3330.1,0.53652258]
[1642381829861,1.51525773,3330.4,3330.1,0.53652258]
[1642381830061,0.18046774,3330.2,3330.1,0.53652258]
[1642381830861,0.18046774,3330.3,3330.1,0.53652258]
[1642381831563,1.69572547,3330.4,3330.1,0.53652258]
[1642381832407,0.00113684,3330.4,3330.1,0.53652258]
[1642381833406,1.51412089,3330.3,3330.1,0.53652258]
[1642381834007,1.69458863,3330.3,3330.1,0.53652258]
[1642381835509,0.18160458,3330.4,3330.1,0.53652258]
[1642381836760,0.00113684,3330.4,3330.1,0.53652258]
[1642381838363,0.36739497,3330.3,3330.1,0.53652258]
[1642381838564,10.54763553,3330.2,3330.1,0.53652258]
[1642381839162,10.41508331,3330.2,3330.1,0.53652258]
[1642381839563,9.62011628,3330.2,3330.1,0.53652258]
[1642381840006,12.09973205,3330.2,3330.1,0.53652258]
[1642381841009,13.61385294,3330.2,3330.1,0.53652258]
[1642381841413,13.91385294,3330.2,3330.1,0.53652258]
[1642381841611,13.39973205,3330.2,3330.1,0.53652258]
[1642381842210,13.69973205,3330.2,3330.1,0.53652258]
[1642381843760,15.99338213,3330.2,3330.1,0.22949325]
[1642381843965,15.89338213,3330.2,3330.1,0.22949325]
[1642381844159,15.39338213,3330.2,3330.1,0.22949325]
[1642381844361,11.91376636,3330.2,3330.1,0.22949325]
[1642381845060,13.21376636,3330.2,3330.1,0.22949325]
[1642381845261,11.13844967,3330.2,3330.1,0.22949325]
[1642381845862,8.13046774,3330.2,3330.1,0.22949325]
[1642381846062,0.18046774,3330.2,3330.1,0.22949325]
[1642381848914,0.18046774,3330.2,3330.1,0.23872161]
[1642381851166,1.70122822,3330.2,3330.1,0.23872161]
[1642381851770,6.35122822,3330.2,3330.1,0.23872161]
[1642381852267,9.43211559,3330.2,3330.1,0.23872161]
[1642381852468,10.43211559,3330.2,3330.1,0.23872161]
[1642381853269,8.91135511,3330.2,3330.1,0.23872161]
[1642381854672,17.59,3330.0,3329.4,3.9055]
[1642381854916,1.5019681,3329.8,3329.4,3.9055]
[1642381855114,2.6180491,3329.7,3329.5,0.00397897]
[1642381855617,5.08081769,3329.6,3329.4,0.00454739]
[1642381856015,0.3,3329.5,3329.4,0.00454739]
[1642381856819,5.08081769,3329.6,3329.4,0.00454739]
[1642381857015,4.98046774,3329.5,3329.4,0.00454739]
[1642381858868,4.98046774,3329.5,3329.4,0.03478078]
[1642381861664,7.41590331,3329.5,3329.4,0.03478078]
[1642381862315,13.75,3329.4,3329.3,0.001]
[1642381862517,32.34,3329.4,3329.3,0.001]
[1642381862916,32.64,3329.4,3329.3,0.001]
[1642381863115,7.85,3329.3,3328.4,4.9071]
[1642381863416,7.85,3329.3,3328.5,0.00511581]
[1642381863417,3.42256193,3329.2,3328.5,0.00511581]
[1642381864416,3.460296,3329.2,3328.5,0.00511581]
[1642381864620,2.29190998,3329.1,3328.5,0.00511581]
[1642381864917,2.28378214,3329.1,3328.5,0.00511581]
[1642381865118,1.51552006,3329.0,3328.5,0.00511581]
[1642381865317,4.74029212,3329.0,3328.5,0.00511581]
[1642381865516,0.75112,3328.7,3328.5,0.00511581]
[1642381865916,0.75112,3328.7,3328.4,0.00568424]
[1642381866183,0.75112,3328.7,3328.1,0.00738951]
[1642381866783,1.34446106,3328.6,3328.1,0.00738951]
[1642381867386,1.5249288,3328.6,3328.2,2.23380673]
[1642381867784,0.18046774,3328.6,3328.3,0.00625266]
[1642381868584,0.18046774,3328.5,3328.3,0.00625266]
[1642381869192,0.18046774,3328.6,3328.3,0.00625266]
[1642381869584,0.18046774,3328.6,3328.1,0.00738951]
[1642381870915,0.18046774,3328.6,3328.2,2.24826286]
[1642381871314,0.18046774,3328.6,3328.3,0.00625266]
[1642381873316,0.18046774,3328.6,3328.0,0.00795793]